bitfinex/quotes_ETHUSD_20250628
["timestamp","ask_amount","ask_price","bid_price","bid_amount"]
[1751133146923,16.734,2445.4,2445.3,0.002]
[1751133147110,10.0,2445.4,2445.3,0.002]
[1751133147309,10.204,2445.4,2445.3,0.002]
[1751133147642,10.949272,2445.4,2445.3,0.002]
[1751133148609,10.204,2445.4,2445.3,0.002]
[1751133149032,10.949272,2445.4,2445.3,0.002]
[1751133150027,13.96875677,2445.4,2445.3,0.002]
[1751133150227,34.15281174,2445.4,2445.3,0.002]
[1751133152951,33.40753974,2445.4,2445.3,0.002]
[1751133153815,31.69922542,2445.4,2445.3,0.002]
[1751133154249,19.95548477,2445.4,2445.3,0.002]
[1751133154723,17.50189845,2445.4,2445.3,0.002]
[1751133155125,18.24717045,2445.4,2445.3,0.002]
[1751133155517,17.50189845,2445.4,2445.3,0.002]
[1751133155722,19.95548477,2445.4,2445.3,0.002]
[1751133156449,20.70075677,2445.4,2445.3,0.002]
[1751133156621,19.95548477,2445.4,2445.3,0.002]
[1751133157049,17.50189845,2445.4,2445.3,0.002]
[1751133158750,18.24717045,2445.4,2445.3,0.002]
[1751133158941,17.50189845,2445.4,2445.3,0.002]
[1751133159826,18.24717045,2445.4,2445.3,0.002]
[1751133160021,17.50189845,2445.4,2445.3,0.002]
[1751133160221,16.928,2445.4,2445.3,0.002]
[1751133160451,10.204,2445.4,2445.3,0.7908]
[1751133160617,0.204,2445.7,2445.3,3.24448666]
[1751133161018,9.17703608,2446.0,2445.3,3.24441671]
[1751133161238,0.745272,2445.7,2445.4,2.65756871]
[1751133161445,0.745272,2445.7,2445.4,0.204]
[1751133162059,0.745272,2445.7,2445.4,2.65757626]
[1751133162519,0.745272,2445.7,2445.5,2.45342896]
[1751133163131,0.745272,2445.7,2445.4,2.65753226]
[1751133163436,10.204,2445.9,2445.4,0.204]
[1751133163957,0.745272,2445.7,2445.4,0.204]
[1751133164168,10.204,2445.9,2445.4,0.204]
[1751133164857,0.204,2445.9,2445.5,2.45348217]
[1751133165570,10.949272,2445.9,2445.7,0.7743]
[1751133165756,0.204,2445.9,2445.7,0.7743]
[1751133166834,0.949272,2445.9,2445.7,0.7743]
[1751133167037,0.204,2445.9,2445.7,0.7743]
[1751133167365,14.97777376,2446.5,2445.8,2.45318505]
[1751133167552,0.204,2446.2,2445.8,2.65718505]
[1751133167938,0.745272,2445.9,2445.8,2.65718505]
[1751133168145,0.204,2446.2,2445.8,2.65718505]
[1751133169667,0.204,2446.2,2445.8,0.204]
[1751133170067,0.949272,2446.2,2445.8,0.204]
[1751133170269,0.204,2446.2,2445.8,0.204]
[1751133170667,0.949272,2446.2,2445.8,0.204]
[1751133170962,0.204,2445.9,2445.5,0.8]
[1751133171164,10.204,2445.9,2445.5,0.8]
[1751133171476,13.4024386,2445.9,2445.5,0.8]
[1751133171682,13.4024386,2445.9,2445.3,2.45568475]
[1751133171683,2.45320536,2445.8,2445.3,0.802]
[1751133171976,0.204,2445.6,2445.3,0.802]
[1751133172277,0.204,2445.6,2445.3,3.25567129]
[1751133172681,0.204,2445.6,2445.3,0.802]
[1751133172682,0.949272,2445.6,2445.3,0.802]
[1751133172882,0.745272,2445.6,2445.5,3.21928599]
[1751133173046,0.745272,2445.6,2445.5,3.76581459]
[1751133173758,0.204,2446.1,2445.5,3.76581459]
[1751133173759,0.204,2446.1,2445.7,2.4532797]
[1751133173956,0.745272,2445.6,2445.5,3.76581459]
[1751133174956,0.745272,2445.6,2445.5,1.3123286]
[1751133175159,0.745272,2445.6,2445.5,0.9698]
[1751133178402,0.745272,2445.6,2445.5,3.42328599]
[1751133178568,14.19732697,2445.6,2445.3,0.002]
[1751133178901,10.0,2445.8,2445.3,0.002]
[1751133179070,1.0,2445.7,2445.3,0.002]
[1751133179266,0.745272,2445.6,2445.3,0.002]
[1751133179467,1.0,2445.7,2445.3,0.002]
[1751133179468,10.0,2445.8,2445.4,0.7993]
[1751133179793,0.745272,2445.7,2445.4,0.7993]
[1751133180382,0.745272,2445.7,2445.4,3.25287828]
[1751133180576,0.745272,2445.7,2445.4,1.37016467]
[1751133180792,0.745272,2445.7,2445.4,3.82371759]
[1751133182298,0.745272,2445.7,2445.4,1.37016467]
[1751133182699,0.745272,2445.7,2445.6,2.45338567]
[1751133183297,10.0,2446.2,2445.6,2.45338567]
[1751133183298,2.45279449,2446.2,2445.6,2.45338567]
[1751133183607,2.45279449,2446.2,2445.5,5.01044152]
[1751133183608,2.45288418,2446.1,2445.5,5.01044152]
[1751133183976,0.745272,2445.7,2445.5,5.01044152]
[1751133184485,12.45283609,2446.2,2445.5,5.01044152]
[1751133184486,2.45283609,2446.2,2445.5,5.01044152]
[1751133184699,3.19810809,2446.2,2445.5,5.81412732]
[1751133185206,2.45283609,2446.2,2445.5,4.05712732]
[1751133185409,3.19810809,2446.2,2445.5,5.81412732]
[1751133186310,3.19810809,2446.2,2445.4,1.757]
[1751133186311,0.7874,2445.9,2445.4,1.757]
[1751133186679,1.532672,2445.9,2445.4,1.757]
[1751133186990,1.532672,2445.9,2445.3,0.802]
[1751133187203,2.4531868,2445.8,2445.3,0.802]
[1751133187392,3.98580995,2445.9,2445.3,0.802]
[1751133187777,10.0,2445.8,2445.3,0.802]
[1751133187979,12.45318879,2445.8,2445.3,0.802]
[1751133188611,0.204,2445.6,2445.3,3.25565369]
[1751133188821,0.204,2445.6,2445.5,2.45348599]
[1751133189134,0.745272,2445.9,2445.7,2.45328535]
[1751133189420,0.204,2446.1,2445.5,1.0287]
[1751133189421,0.204,2446.1,2445.6,2.6987267]
[1751133189627,0.745272,2445.9,2445.8,2.45318505]
[1751133189797,0.204,2446.1,2445.9,2.45305087]
[1751133189984,0.204,2446.1,2445.9,0.8247]
[1751133190413,0.949272,2446.1,2445.9,0.8247]
[1751133190633,0.204,2446.1,2445.9,0.8247]
[1751133191523,0.949272,2446.1,2445.9,0.8247]
[1751133191729,0.204,2446.1,2445.9,0.8247]
[1751133192133,0.204,2446.1,2445.9,3.27770077]
[1751133192330,0.204,2446.1,2446.0,2.45298446]
[1751133192529,0.949272,2446.1,2445.9,3.87124311]
[1751133192898,0.204,2446.1,2445.9,1.41818808]
[1751133193206,0.204,2446.1,2445.9,3.87125934]
[1751133193603,0.204,2446.1,2445.9,1.41818808]
[1751133193791,0.204,2446.1,2445.9,0.8247]
[1751133193996,0.949272,2446.1,2445.9,0.8247]
[1751133194434,0.949272,2446.1,2445.9,3.27776133]
[1751133194620,0.745272,2446.1,2446.0,2.45298446]
[1751133195167,0.204,2446.3,2446.0,2.45298446]
[1751133195168,0.204,2446.3,2446.1,2.45285379]
[1751133195294,0.204,2446.3,2446.2,3.2774839]
[1751133195619,0.001,2446.9,2446.3,2.45268331]
[1751133195807,0.204,2446.7,2446.3,3.20666649]
[1751133196010,0.204,2446.7,2446.4,2.45249255]
[1751133196206,0.204,2446.7,2446.5,2.45240528]
[1751133196421,0.001,2446.9,2446.3,0.55]
[1751133196618,0.205,2446.9,2446.6,2.45232924]
[1751133196847,0.205,2446.9,2446.5,3.27714524]
[1751133197123,0.205,2446.9,2446.5,0.8247]
[1751133197502,0.950272,2446.9,2446.6,2.45237224]
[1751133197803,0.205,2446.9,2446.5,0.8247]
[1751133198218,0.205,2446.9,2446.6,2.45232458]
[1751133198711,0.950272,2446.9,2446.6,2.45232458]
[1751133198906,0.205,2446.9,2446.6,2.45232458]
[1751133199246,0.205,2446.9,2446.5,3.27714744]
[1751133199849,0.950272,2446.9,2446.5,3.27714744]
[1751133200045,0.205,2446.9,2446.5,3.27714744]
[1751133201140,0.950272,2446.9,2446.5,3.27714744]
[1751133201750,12.16331764,2446.9,2446.3,0.7896]
[1751133202049,0.7898,2446.6,2446.0,0.7896]
[1751133202250,0.7898,2446.2,2445.7,1.75]
[1751133202548,0.204,2446.3,2445.9,3.24263529]
[1751133202734,0.204,2446.3,2445.9,4.00761664]
[1751133203241,0.204,2446.3,2446.0,2.45298089]
[1751133203658,0.949272,2446.3,2446.0,2.45298089]
[1751133203810,0.949272,2446.3,2445.9,4.00761276]
[1751133204129,0.949272,2446.3,2445.9,0.76498135]
[1751133204360,0.949272,2446.3,2446.0,2.45297475]
[1751133204710,0.204,2446.3,2446.0,2.45297475]
[1751133204916,0.204,2446.3,2445.9,0.7789]
[1751133205246,0.949272,2446.3,2445.9,1.75]
[1751133205409,0.949272,2446.3,2445.8,2.65713243]
[1751133205605,3.40200041,2446.3,2445.8,0.204]
[1751133205809,3.40200041,2446.3,2445.8,2.6571636]
[1751133205810,0.949272,2446.3,2445.8,2.6571636]
[1751133206512,0.949272,2446.3,2445.9,2.45307926]
[1751133206709,0.949272,2446.3,2446.0,2.45288892]
[1751133207123,0.204,2446.3,2446.0,2.45288892]
[1751133207740,0.949272,2446.3,2445.9,2.45303624]
[1751133207944,0.949272,2446.3,2446.0,2.45297845]
[1751133208150,0.949272,2446.3,2446.0,2.45295691]
[1751133208356,0.204,2446.3,2446.0,2.45295691]
[1751133208551,0.204,2446.3,2445.9,0.55]
[1751133208850,0.204,2446.3,2445.9,3.5216391]
[1751133209053,0.949272,2446.3,2445.9,4.7216391]
[1751133209252,0.949272,2446.3,2446.0,2.45298295]
[1751133209425,0.204,2446.3,2446.0,2.45298295]
[1751133209618,0.204,2446.3,2445.8,2.6571474]
[1751133209958,13.47296342,2446.3,2445.8,1.954]
[1751133210253,14.21823542,2446.3,2445.8,4.40717752]
[1751133210456,11.76554654,2446.3,2445.8,4.40717752]
[1751133210822,11.76554654,2446.3,2445.9,2.45307989]
[1751133211030,10.949272,2446.3,2445.9,2.45307989]
[1751133211619,10.949272,2446.3,2445.9,2.45308475]
[1751133211820,0.949272,2446.3,2446.0,2.45296567]
[1751133212425,0.949272,2446.3,2446.0,2.45298446]
[1751133212621,0.949272,2446.3,2445.9,2.4530372]
[1751133212829,0.949272,2446.3,2445.8,0.204]
[1751133212830,10.949272,2446.3,2445.8,4.40714315]
[1751133213954,10.204,2446.3,2445.8,4.40714315]
[1751133214335,10.949272,2446.3,2445.8,4.40714315]
[1751133214529,0.8071,2446.2,2445.8,0.204]
[1751133214750,9.36247974,2446.0,2445.6,4.20335465]
[1751133214955,9.36247974,2446.0,2445.6,4.40735465]
[1751133215152,9.36247974,2446.0,2445.7,2.45326694]
[1751133216468,10.10775174,2446.0,2445.7,2.45326694]
[1751133216971,10.10775174,2446.0,2445.6,2.65733271]
[1751133217764,10.10775174,2446.0,2445.7,2.45325575]
[1751133218572,9.36247974,2445.8,2445.6,3.47792534]
[1751133219379,9.36247974,2446.0,2445.7,2.45328284]
[1751133219575,0.745272,2445.8,2445.6,3.47792721]
[1751133219865,0.745272,2445.8,2445.7,2.45328535]
[1751133220038,9.56647974,2446.1,2445.7,2.45328535]
[1751133220234,9.56647974,2446.1,2445.6,1.02458825]
[1751133220459,9.56647974,2446.1,2445.6,3.47792008]
[1751133220460,12.01937202,2446.1,2445.6,3.47792008]
[1751133220663,9.36247974,2445.9,2445.6,3.47792008]
[1751133220868,0.745272,2445.8,2445.6,3.47792008]
[1751133221372,10.10775174,2445.9,2445.7,2.45327351]
[1751133221938,10.10775174,2445.9,2445.6,1.02458825]
[1751133222263,10.10775174,2445.9,2445.6,0.204]
[1751133222465,9.36247974,2445.9,2445.6,0.204]
[1751133222768,9.36247974,2445.7,2445.4,1.739]
[1751133222943,9.36247974,2445.7,2445.3,0.7971]
[1751133222944,9.36247974,2445.7,2445.3,3.45472651]
[1751133223172,9.36247974,2445.7,2445.4,1.739]
[1751133223798,9.36247974,2445.7,2445.4,4.19256874]
[1751133224092,9.36247974,2445.7,2445.4,1.739]
[1751133224796,10.10775174,2445.7,2445.4,4.19258282]
[1751133225088,10.10775174,2445.7,2445.4,1.739]
[1751133225479,10.10775174,2445.7,2445.3,0.206]
[1751133225662,9.36247974,2445.5,2445.3,0.002]
[1751133226089,10.10775174,2445.5,2445.3,0.002]
[1751133226469,10.10775174,2445.5,2445.3,2.45566845]
[1751133226670,10.10775174,2445.5,2445.3,0.002]
[1751133228968,10.10775174,2445.5,2445.3,2.45564954]
[1751133230063,0.745272,2445.5,2445.3,2.45564954]
[1751133231894,0.745272,2445.5,2445.3,0.002]
[1751133232111,0.745272,2445.5,2445.3,2.45567098]
[1751133232274,0.745272,2445.5,2445.4,2.45358632]
[1751133232794,0.745272,2445.5,2445.3,4.86871376]
[1751133233499,0.745272,2445.5,2445.4,2.45358632]
[1751133233803,0.745272,2445.5,2445.4,3.99988632]
[1751133234095,10.0,2445.9,2445.7,2.45324583]
[1751133234096,10.204,2445.9,2445.7,2.45324583]
[1751133235303,0.204,2445.9,2445.8,2.45318505]
[1751133235518,2.05301222,2446.4,2445.8,2.45318505]
[1751133235519,0.204,2446.2,2446.0,2.45289347]
[1751133235719,10.13457974,2446.8,2446.4,2.45257249]
[1751133236018,0.204,2446.6,2446.4,2.45252454]
[1751133236319,0.001,2446.9,2446.8,2.45218244]
[1751133236614,0.001,2446.9,2446.8,3.24448244]
[1751133237113,0.001,2446.9,2446.8,3.79448244]
[1751133237899,0.001,2446.9,2446.8,12.22248244]
[1751133238236,0.746272,2446.9,2446.8,12.22248244]
[1751133238455,0.746272,2446.9,2446.8,13.68996792]
[1751133238938,0.001,2446.9,2446.8,23.68996792]
[1751133240234,0.746272,2446.9,2446.8,23.68996792]
[1751133240418,0.746272,2446.9,2446.8,15.26196792]
[1751133240419,0.001,2446.9,2446.8,15.26196792]
[1751133240742,0.001,2446.9,2446.8,23.69596792]
[1751133241311,0.001,2447.1,2447.0,3.00198201]
[1751133241640,0.001,2447.1,2447.0,17.60235412]
[1751133241802,0.001,2447.1,2447.0,7.60235412]
[1751133242166,0.001,2447.1,2447.0,11.60235412]
[1751133242303,0.001,2447.1,2447.0,21.60235412]
[1751133242505,0.001,2447.3,2447.0,30.03335412]
[1751133242768,0.001,2447.3,2447.2,13.76868162]
[1751133243040,0.001,2447.3,2447.2,14.26868162]
[1751133243750,0.001,2447.4,2447.2,14.26868162]
[1751133243751,0.001,2447.4,2447.3,13.76858144]
[1751133244403,0.001,2447.4,2447.3,22.21158144]
[1751133244605,0.001,2447.4,2447.3,25.2734383]
[1751133244806,0.001,2447.4,2447.3,16.8304383]
[1751133245032,0.001,2447.4,2447.3,24.7234383]
[1751133245302,0.001,2447.4,2447.3,25.2734383]
[1751133245805,0.001,2447.4,2447.3,16.8304383]
[1751133246001,0.001,2447.4,2447.3,25.2764383]
[1751133246448,0.001,2447.4,2447.3,17.0344383]
[1751133246601,0.001,2447.4,2447.3,25.4804383]
[1751133247457,0.001,2447.4,2447.3,6.4844383]
[1751133247631,0.001,2447.4,2447.3,11.86858144]
[1751133247830,0.001,2447.4,2447.3,12.41858144]
[1751133248030,0.001,2447.4,2447.3,11.86858144]
[1751133248264,0.001,2447.4,2447.3,12.41858144]
[1751133248626,0.001,2447.4,2447.3,12.41658144]
[1751133248839,0.001,2447.4,2447.3,14.95341775]
[1751133249214,0.001,2447.4,2447.3,14.95441775]
[1751133251831,0.001,2447.4,2447.3,24.95441775]
[1751133252032,0.001,2447.4,2447.3,16.50941775]
[1751133252231,0.001,2447.4,2447.3,5.95941775]
[1751133252457,0.001,2447.4,2447.3,11.87258144]
[1751133252762,0.001,2447.4,2447.3,3.42258144]
[1751133253330,0.001,2447.4,2447.3,12.43858144]
[1751133253844,0.001,2447.4,2447.3,22.43858144]
[1751133255053,0.001,2447.4,2447.3,26.43858144]
[1751133255254,0.001,2447.4,2447.3,29.37761775]
[1751133255567,0.001,2448.1,2448.0,3.00098039]
[1751133255747,0.001,2448.1,2448.0,11.67298039]
[1751133256063,0.001,2448.1,2448.0,11.71250841]
[1751133256437,0.001,2448.1,2448.0,3.24450841]
[1751133256638,0.001,2448.1,2448.0,9.95750841]
[1751133256971,1.7320207,2448.1,2448.0,0.03952802]
[1751133257172,0.7662,2448.1,2448.0,0.03952802]
[1751133257335,0.7662,2448.1,2448.0,6.75152802]
[1751133257532,0.7662,2448.1,2448.0,0.03952802]
[1751133257533,4.8848871,2448.1,2448.0,0.03952802]
[1751133257764,3.21635135,2447.9,2447.7,6.712]
[1751133258077,3.21635135,2447.9,2447.6,0.204]
[1751133258078,16.11622261,2447.8,2447.6,6.714]
[1751133258250,16.11622261,2447.8,2446.7,10.0]
[1751133258251,2.45138094,2447.6,2447.0,2.45188651]
[1751133258571,15.91252889,2447.5,2447.0,4.2059467]
[1751133258745,9.35263371,2447.1,2447.0,1.754]
[1751133258945,9.35263371,2447.1,2447.0,4.20598201]
[1751133259147,9.35263371,2447.1,2447.0,8.469]
[1751133259475,0.745272,2447.1,2447.0,8.50821361]
[1751133259657,0.745272,2447.1,2447.0,10.96019562]
[1751133260033,0.745272,2447.1,2447.0,8.50821361]
[1751133260237,0.745272,2447.1,2447.0,11.51019562]
[1751133260490,0.745272,2447.1,2447.0,9.05821361]
[1751133260632,10.0,2447.5,2447.1,0.55]
[1751133260633,0.7652,2447.4,2447.1,0.55]
[1751133260836,15.91783156,2447.3,2447.0,0.03921361]
[1751133261041,2.45183436,2447.2,2447.1,6.714]
[1751133261240,2.45183436,2447.2,2447.0,0.03921361]
[1751133261241,13.46610253,2447.3,2447.0,6.75321361]
[1751133261480,2.45178458,2447.2,2447.0,6.75321361]
[1751133262138,15.91784487,2447.3,2447.0,6.75321361]
[1751133262339,2.45178644,2447.2,2447.0,6.75321361]
[1751133262540,2.45178644,2447.2,2447.0,0.03921361]
[1751133262771,3.21708181,2447.1,2447.0,0.03921361]
[1751133263074,13.21708181,2447.1,2447.0,0.03921361]
[1751133263384,0.7652,2447.1,2446.6,6.715]
[1751133263536,0.7652,2447.1,2446.7,3.00226876]
[1751133263936,0.7652,2447.1,2446.7,0.55]
[1751133264168,1.510472,2447.1,2446.7,3.00227962]
[1751133264371,2.45199818,2447.0,2446.6,6.715]
[1751133264534,13.46610253,2447.0,2446.7,6.717]
[1751133264735,17.5858997,2447.0,2446.7,6.717]
[1751133264941,15.13390936,2447.0,2446.6,3.00237098]
[1751133265140,13.46610253,2447.0,2446.6,9.16837819]
[1751133265374,14.21137453,2447.0,2446.7,2.45227066]
[1751133265740,0.745272,2447.0,2446.8,2.45212622]
[1751133265974,10.745272,2447.0,2446.6,9.16831544]
[1751133266177,13.19733066,2447.0,2446.5,2.45243952]
[1751133266480,12.14151221,2447.0,2446.6,6.718]
[1751133266974,2.45213658,2446.9,2446.6,6.718]
[1751133267305,3.28921655,2446.9,2446.5,6.717]
[1751133267578,0.7652,2446.8,2446.3,2.45262194]
[1751133267751,0.7652,2446.8,2446.4,6.717]
[1751133268179,3.21742987,2446.8,2446.4,6.717]
[1751133268484,4.16670187,2446.8,2446.4,6.921]
[1751133268696,2.95272595,2446.7,2446.2,9.803]
[1751133268852,0.8027,2446.5,2446.3,6.717]
[1751133269177,0.8027,2446.5,2446.2,6.716]
[1751133269178,14.26880253,2446.5,2446.2,6.716]
[1751133269343,15.21807453,2446.5,2446.1,2.65682704]
[1751133269543,15.21807453,2446.5,2446.0,0.002]
[1751133269544,13.46610253,2446.2,2446.0,0.002]
[1751133269769,0.8027,2446.1,2446.0,0.002]
[1751133270978,1.547972,2446.1,2446.0,0.002]
[1751133271549,14.00085618,2446.1,2446.0,0.002]
[1751133271749,14.83793615,2446.1,2446.0,0.002]
[1751133271950,12.38505197,2446.1,2446.0,0.002]
[1751133272595,12.58905197,2446.1,2446.0,0.002]
[1751133272963,11.751972,2446.1,2446.0,0.002]
[1751133273192,1.751972,2446.1,2446.0,0.002]
[1751133273803,0.949272,2446.1,2446.0,0.002]
[1751133274000,0.745272,2446.1,2446.0,0.002]
[1751133274586,1.547972,2446.1,2446.0,0.002]
[1751133274897,4.20485618,2446.1,2446.0,0.002]
[1751133275090,2.19285762,2446.1,2446.0,0.002]
[1751133275297,4.6457418,2446.1,2446.0,0.002]
[1751133275594,3.9004698,2446.1,2446.0,0.002]
[1751133275835,4.6457418,2446.1,2446.0,0.002]
[1751133275964,2.19285762,2446.1,2446.0,0.002]
[1751133276164,4.6457418,2446.1,2446.0,0.002]
[1751133276365,2.19285762,2446.1,2446.0,0.002]
[1751133276799,3.9004698,2446.1,2446.0,0.002]
[1751133277372,10.0,2445.8,2445.7,0.002]
[1751133277585,25.16537506,2445.8,2445.7,0.002]
[1751133277810,10.8027,2445.8,2445.7,0.002]
[1751133278106,11.547972,2445.8,2445.7,0.002]
[1751133279136,10.745272,2445.8,2445.7,0.002]
[1751133279267,10.0,2445.8,2445.7,0.002]
[1751133279465,10.745272,2445.8,2445.7,0.002]
[1751133279666,0.745272,2445.8,2445.7,2.45528535]
[1751133279977,0.745272,2445.8,2445.7,3.00528535]
[1751133280189,0.745272,2445.8,2445.7,3.75515093]
[1751133280390,0.982,2446.2,2445.7,3.75515093]
[1751133280391,0.982,2446.2,2445.9,2.45301816]
[1751133280699,0.982,2446.2,2445.7,3.75515093]
[1751133280700,10.982,2446.2,2446.0,2.4529732]
[1751133280914,10.982,2446.2,2445.9,2.45303497]
[1751133281111,10.204,2446.2,2446.1,2.45288418]
[1751133281311,0.204,2446.2,2446.1,2.45288418]
[1751133281511,0.778,2446.4,2445.8,2.45317465]
[1751133281512,0.778,2446.4,2445.9,0.754]
[1751133281513,10.982,2446.4,2445.9,0.754]
[1751133281683,10.982,2446.4,2446.0,2.45296732]
[1751133282195,10.982,2446.4,2445.9,3.20703722]
[1751133282398,2.45271127,2446.3,2445.9,0.204]
[1751133282603,0.778,2446.2,2445.9,0.204]
[1751133282784,0.778,2446.2,2445.7,2.45523803]
[1751133282979,0.204,2446.1,2445.7,0.206]
[1751133283180,16.12306425,2446.1,2445.7,0.206]
[1751133283420,10.0,2446.0,2445.7,0.206]
[1751133283808,13.46610253,2445.8,2445.7,0.002]
[1751133283995,28.89699983,2445.8,2445.7,0.002]
[1751133284723,26.44381478,2445.8,2445.7,0.002]
[1751133284899,11.754572,2445.8,2445.7,0.002]
[1751133286007,10.949272,2445.8,2445.7,0.002]
[1751133286929,0.949272,2445.8,2445.7,2.45528535]
[1751133288037,17.5263,2446.0,2445.7,2.45528535]
[1751133288238,17.5263,2446.0,2445.7,0.002]
[1751133288452,10.8053,2446.0,2445.7,0.002]
[1751133288612,17.5263,2446.0,2445.7,2.45526962]
[1751133288946,17.5253,2446.0,2445.8,2.45317803]
[1751133289147,17.5253,2446.0,2445.7,2.4552236]
[1751133289517,18.270572,2446.0,2445.7,2.4552236]
[1751133289815,17.5253,2446.0,2445.7,2.4552236]
[1751133290049,10.8053,2446.0,2445.8,2.45317002]
[1751133290250,16.719,2446.0,2445.9,2.45308475]
[1751133290647,10.0,2445.9,2445.7,2.45524315]
[1751133290848,6.719,2446.0,2445.7,2.45524315]
[1751133290849,7.464272,2446.0,2445.7,2.45524315]
[1751133291056,7.464272,2446.0,2445.7,0.002]
[1751133291350,7.462272,2446.0,2445.7,0.002]
[1751133292249,9.91526896,2446.0,2445.7,0.002]
[1751133292549,1.0072,2445.9,2445.7,0.002]
[1751133292715,1.0072,2445.9,2445.8,2.45318505]
[1751133292716,0.204,2445.9,2445.8,2.45318505]
[1751133292910,0.204,2445.9,2445.7,2.45523589]
[1751133293650,6.922,2445.9,2445.7,2.45523589]
[1751133293870,0.745272,2446.0,2445.9,2.45308475]
[1751133294555,10.0,2446.1,2446.0,2.45298446]
[1751133294751,10.745272,2446.1,2446.0,2.45298446]
[1751133294949,0.745272,2446.1,2446.0,2.45298446]
[1751133295143,6.922,2446.3,2446.1,2.45286773]
[1751133295324,7.667272,2446.3,2446.0,2.45293274]
[1751133295530,7.667272,2446.3,2446.1,2.45287396]
[1751133295531,6.922,2446.3,2446.1,2.45287396]
[1751133295816,6.922,2446.3,2445.8,0.204]
[1751133295817,6.922,2446.3,2446.0,2.45293886]
[1751133296022,7.667272,2446.3,2446.0,2.45293886]
[1751133296319,6.922,2446.3,2446.0,2.45293886]
[1751133296657,6.922,2446.3,2445.8,2.65716698]
[1751133296658,0.204,2446.3,2445.8,0.204]
[1751133296953,10.0,2446.2,2446.0,2.45293052]
[1751133297341,10.0,2446.2,2446.1,2.45288418]
[1751133297924,0.204,2446.3,2446.2,2.4527839]
[1751133298221,16.917,2446.3,2446.2,2.4527839]
[1751133298440,10.204,2446.3,2446.2,2.4527839]
[1751133298775,1.757,2446.5,2446.3,2.45261601]
[1751133298976,10.0,2446.4,2446.3,2.45261601]
[1751133299342,10.0,2446.4,2446.1,0.9822]
[1751133299343,10.0,2446.4,2446.1,0.204]
[1751133299645,10.0,2446.4,2446.1,2.65683785]
[1751133299860,10.0,2446.4,2446.2,2.45277619]
[1751133300257,10.745272,2446.4,2446.2,2.45277619]
[1751133300472,10.0,2446.4,2446.2,2.45277619]
[1751133300662,10.0,2446.4,2446.2,2.4527839]
[1751133301262,17.455272,2446.4,2446.1,2.65684199]
[1751133301459,16.71,2446.4,2446.1,2.65686749]
[1751133301772,16.71,2446.4,2446.2,2.45275488]
[1751133301975,17.455272,2446.4,2446.2,2.45275488]
[1751133302194,17.455272,2446.4,2446.1,0.204]
[1751133302369,17.455272,2446.4,2446.0,2.45297903]
[1751133302370,10.7816,2446.3,2446.0,2.45297903]
[1751133302576,6.707,2446.2,2446.0,0.204]
[1751133302880,6.707,2446.2,2445.9,2.4530801]
[1751133303049,6.707,2446.2,2446.0,2.45297847]
[1751133303369,6.707,2446.2,2446.1,2.45288418]
[1751133303785,6.707,2446.2,2445.8,0.204]
[1751133303786,6.707,2446.2,2445.9,2.45303134]
[1751133304090,7.452272,2446.2,2445.9,2.45303134]
[1751133304295,7.452272,2446.2,2445.9,2.45307463]
[1751133304793,10.0,2446.1,2445.8,2.65713252]
[1751133305366,10.0,2446.1,2445.8,2.45313252]
[1751133305566,10.204,2446.1,2445.8,2.45313252]
[1751133305767,10.204,2446.1,2445.7,0.206]
[1751133305768,6.708,2446.0,2445.7,0.206]
[1751133306170,10.8043,2445.9,2445.7,0.002]
[1751133306375,6.912,2445.8,2445.7,0.002]
[1751133306575,16.912,2445.8,2445.7,0.002]
[1751133306777,19.36518505,2445.8,2445.7,0.002]
[1751133307392,16.912,2445.8,2445.7,0.002]
[1751133308397,19.36518505,2445.8,2445.7,0.002]
[1751133308563,17.657272,2445.8,2445.7,0.002]
[1751133308891,20.11045705,2445.8,2445.7,0.002]
[1751133309198,20.91635705,2445.8,2445.7,0.002]
[1751133309500,20.91635705,2445.8,2445.3,0.002]
[1751133309501,3.25948632,2445.4,2445.3,0.002]
[1751133309671,25.18858885,2445.4,2445.3,0.002]
[1751133309865,22.73500253,2445.4,2445.3,0.002]
[1751133310186,25.18858885,2445.4,2445.3,0.002]
[1751133310493,22.73500253,2445.4,2445.3,0.002]
[1751133310682,25.18858885,2445.4,2445.3,0.002]
[1751133310999,25.93386085,2445.4,2445.3,0.002]
[1751133311296,23.48027453,2445.4,2445.3,0.002]
[1751133311694,22.73500253,2445.4,2445.3,0.002]
[1751133312279,23.48027453,2445.4,2445.3,0.002]
[1751133312681,22.73500253,2445.4,2445.3,0.002]
[1751133313167,25.18858885,2445.4,2445.3,0.002]
[1751133313369,25.93386085,2445.4,2445.3,0.002]
[1751133313789,25.18858885,2445.4,2445.3,0.002]
[1751133315062,25.92286085,2445.4,2445.3,0.002]
[1751133315691,25.17758885,2445.4,2445.3,0.002]
[1751133315894,32.72400253,2445.4,2445.0,0.002]
[1751133316100,26.67748989,2445.1,2445.0,0.002]
[1751133316295,33.37948989,2445.1,2445.0,0.002]
[1751133317293,30.92560253,2445.1,2445.0,0.002]
[1751133317597,32.67360253,2445.1,2445.0,0.002]
[1751133318286,35.12748989,2445.1,2445.0,0.002]
[1751133320773,26.67748989,2445.1,2445.0,0.002]
[1751133320972,35.12648989,2445.1,2445.0,0.002]
[1751133322084,21.66038736,2445.1,2445.0,0.002]
[1751133322281,35.12648989,2445.1,2445.0,0.002]
[1751133322615,31.03247552,2445.1,2445.0,0.002]
[1751133326294,30.82730452,2445.1,2445.0,0.002]
[1751133332247,30.82530452,2445.1,2445.0,0.002]